bitfinex-derivatives/quotes_BNBF0:USTF0_20250810
["timestamp","ask_amount","ask_price","bid_price","bid_amount"]
[1754800313430,0.76866704,817.25,815.95,1.64048887]
[1754800313634,0.76866704,817.24,815.95,1.64048887]
[1754800313832,0.5,817.28,815.95,1.64048887]
[1754800314032,0.7686083,817.27,816.04,1.64048887]
[1754800314231,0.7686083,817.26,816.03,1.64048887]
[1754800314434,0.7686083,817.25,816.01,1.64048887]
[1754800314634,0.7686083,817.24,816.01,1.64048887]
[1754800314832,0.5,817.28,816.02,1.64048887]
[1754800315032,0.76856442,817.27,816.02,1.64048887]
[1754800315234,0.76856442,817.26,816.02,1.64048887]
[1754800315536,0.76856442,817.25,816.02,1.64048887]
[1754800315831,0.76856442,817.24,816.02,1.64048887]
[1754800316036,0.5,817.28,816.02,1.64048887]
[1754800316233,0.76853888,817.27,816.02,1.64048887]
[1754800316431,0.76853888,817.27,815.26,1.291]
[1754800316432,0.76853888,817.26,816.01,1.64048887]
[1754800316737,0.5,817.32,815.94,1.64048887]
[1754800317036,0.76850478,817.31,815.94,1.64048887]
[1754800317332,0.76850478,817.3,815.93,1.64048887]
[1754800317536,0.76850478,817.29,815.93,1.64048887]
[1754800317733,0.76850478,817.28,815.93,1.64048887]
[1754800318035,0.76850478,817.27,815.93,1.64048887]
[1754800318234,0.76850478,817.26,815.93,1.64048887]
[1754800318433,0.5,817.32,815.93,1.64048887]
[1754800318639,0.7685068,817.31,815.93,1.64048887]
[1754800318937,0.7685068,817.3,815.93,1.64048887]
[1754800319134,0.7685068,817.29,815.93,1.64048887]
[1754800319334,0.7685068,817.28,815.93,1.64048887]
[1754800319534,0.7685068,817.27,815.93,1.64048887]
[1754800319733,0.7685068,817.26,815.94,1.64048887]
[1754800319932,0.5,817.32,815.94,1.64048887]
[1754800320236,0.7685055,817.31,815.94,1.64048887]
[1754800320434,0.7685055,817.3,815.94,1.64048887]
[1754800320634,0.7685055,817.29,815.94,1.64048887]
[1754800320834,0.7685055,817.28,815.94,1.64048887]
[1754800321036,0.7685055,817.27,815.94,1.64048887]
[1754800321235,0.7685055,817.26,815.94,1.64048887]
[1754800321434,0.5,817.32,815.94,1.64048887]
[1754800321640,0.76851372,817.31,815.94,1.64048887]
[1754800321839,0.76851372,817.3,815.98,1.64048887]
[1754800322138,0.76851372,817.29,815.95,1.64048887]
[1754800322334,0.5,817.33,815.95,1.64048887]
[1754800322535,0.76858168,817.32,816.0,1.64048887]
[1754800322735,0.5,817.33,816.07,1.64048887]
[1754800322937,0.5,817.42,816.07,1.64048887]
[1754800323141,0.76851648,817.41,816.07,1.64048887]
[1754800323438,0.5,817.42,816.26,1.64048887]
[1754800323642,0.5,817.42,816.27,1.64048887]
[1754800323844,0.21314061,817.44,816.28,1.64048887]
[1754800324043,0.21314061,817.44,816.41,1.64048887]
[1754800324243,0.21314061,817.44,816.36,1.64048887]
[1754800325240,0.21314061,817.44,815.61,2.73234571]
[1754800325241,0.21314061,817.44,816.37,1.64048887]
[1754800326245,0.21314061,817.44,816.38,1.64048887]
[1754800327142,0.21314061,817.44,816.39,1.64048887]
[1754800327944,0.21314061,817.44,816.38,1.64048887]
[1754800328349,0.21314061,817.44,816.39,1.64048887]
[1754800330348,0.21314061,817.44,816.4,1.64048887]
[1754800330847,0.21314061,817.44,816.42,1.64048887]
[1754800331551,0.21314061,817.44,815.57,2.73234571]
[1754800331552,0.21314061,817.44,816.44,1.64048887]
[1754800331750,0.21314061,817.44,816.5,1.64048887]
[1754800331949,0.21314061,817.44,816.55,1.64048887]
[1754800332253,0.21314061,817.44,816.56,1.64048887]
[1754800332448,0.21314061,817.44,816.55,1.64048887]
[1754800332651,0.21314061,817.44,816.54,1.64048887]
[1754800332849,0.21314061,817.44,816.53,1.64048887]
[1754800334052,0.21314061,817.44,816.52,1.64048887]
[1754800334254,0.21314061,817.44,816.53,1.64048887]
[1754800334451,0.21314061,817.44,816.52,1.64048887]
[1754800335056,0.21314061,817.44,816.5,1.64048887]
[1754800335252,0.21314061,817.44,816.51,1.64048887]
[1754800335457,0.21314061,817.44,816.5,1.64048887]
[1754800336253,0.21314061,817.44,816.51,1.64048887]
[1754800336453,0.21314061,817.44,816.49,1.64048887]
[1754800337558,0.21314061,817.44,816.48,1.64048887]
[1754800338254,0.21314061,817.44,816.49,1.64048887]
[1754800338458,0.21314061,817.44,816.52,1.64048887]
[1754800341658,0.21314061,817.44,816.61,1.64048887]
[1754800341857,0.21314061,817.44,816.51,1.64048887]
[1754800342455,0.21314061,817.44,816.49,1.64048887]
[1754800342760,0.21314061,817.44,816.51,1.64048887]
[1754800342956,0.21314061,817.44,816.55,1.64048887]
[1754800343460,0.21314061,817.44,816.53,1.64048887]
[1754800344158,0.21314061,817.44,816.38,1.64048887]
[1754800344461,0.21314061,817.44,816.35,1.64048887]
[1754800345363,0.21314061,817.44,816.34,1.64048887]
[1754800345564,0.21314061,817.44,816.33,1.64048887]
[1754800346361,0.21314061,817.44,816.32,1.64048887]
[1754800347360,0.21314061,817.44,816.31,1.64048887]
[1754800348363,0.21314061,817.44,816.29,1.64048887]
[1754800348578,0.21314061,817.44,816.31,1.64048887]
[1754800348765,0.21314061,817.44,816.3,1.64048887]
[1754800349060,0.21314061,817.44,816.29,1.64048887]
[1754800349462,0.21314061,817.44,816.28,1.64048887]
[1754800349862,0.21314061,817.44,816.31,1.64048887]
[1754800350065,0.21314061,817.44,816.23,1.64048887]
[1754800350265,0.21314061,817.44,816.24,1.64048887]
[1754800350565,0.21314061,817.44,816.23,1.64048887]
[1754800350761,0.21314061,817.44,815.76,1.444]
[1754800350762,0.21314061,817.44,816.39,1.64048887]
[1754800350968,0.21314061,817.44,816.38,1.64048887]
[1754800351465,0.21314061,817.44,816.37,1.64048887]
[1754800351667,0.21314061,817.44,816.38,1.64048887]
[1754800351967,0.21314061,817.44,816.58,1.64048887]
[1754800352362,0.21314061,817.44,816.0,2.73234571]
[1754800352363,0.21314061,817.44,816.54,1.64048887]
[1754800353463,0.21314061,817.44,816.53,1.64048887]
[1754800353766,0.21314061,817.44,816.5,1.64048887]
[1754800355667,0.21314061,817.44,816.52,1.64048887]
[1754800356564,0.21314061,817.44,816.48,1.64048887]
[1754800356768,0.21314061,817.44,816.46,1.64048887]
[1754800357265,0.21314061,817.44,816.47,1.64048887]
[1754800357564,0.21314061,817.44,816.46,1.64048887]
[1754800358464,0.21314061,817.44,816.47,1.64048887]
[1754800358763,0.21314061,817.44,816.46,1.64048887]
[1754800358967,0.21314061,817.44,816.47,1.64048887]
[1754800359164,0.21314061,817.44,816.48,1.64048887]
[1754800360164,0.21314061,817.44,816.46,1.64048887]
[1754800360369,0.21314061,817.44,816.47,1.64048887]
[1754800361069,0.21314061,817.44,816.48,1.64048887]
[1754800361871,0.21314061,817.44,816.46,1.64048887]
[1754800362267,0.21314061,817.44,816.49,1.64048887]
[1754800362768,0.21314061,817.44,816.48,1.64048887]
[1754800362968,0.21314061,817.44,816.49,1.64048887]
[1754800363568,0.21314061,817.44,816.5,1.64048887]
[1754800363771,0.21314061,817.44,816.53,1.64048887]
[1754800364571,0.21314061,817.44,816.54,1.64048887]
[1754800365273,0.21314061,817.44,816.59,1.64048887]
[1754800365570,0.21314061,817.44,816.61,1.64048887]
[1754800366374,0.21314061,817.44,816.62,1.64048887]
[1754800366576,0.21314061,817.44,816.65,1.64048887]
[1754800367078,0.21314061,817.44,816.66,1.64048887]
[1754800367275,0.21314061,817.44,816.67,1.64048887]
[1754800367478,0.21314061,817.44,816.68,1.64048887]
[1754800368175,0.21314061,817.44,816.69,1.64048887]
[1754800368779,0.21314061,817.44,816.7,1.64048887]
[1754800369279,0.21314061,817.44,816.71,1.64048887]
[1754800369881,0.21314061,817.44,816.72,1.64048887]
[1754800370077,0.21314061,817.44,816.74,1.64048887]
[1754800370277,0.21314061,817.44,816.75,1.64048887]
[1754800371181,0.21314061,817.44,816.77,1.64048887]
[1754800371983,0.21314061,817.44,816.18,2.73234571]
[1754800371984,0.21314061,817.44,816.76,1.64048887]
[1754800372483,0.21314061,817.44,816.78,1.64048887]
[1754800372885,0.5,817.74,816.78,1.64048887]
[1754800373085,0.21313017,817.28,816.78,1.64048887]
[1754800373279,0.5,817.74,816.8,1.64048887]
[1754800373783,0.21313017,817.16,816.8,1.64048887]
[1754800373984,0.5,817.74,816.8,1.64048887]
[1754800374184,0.21312886,817.51,816.8,1.64048887]
[1754800374382,0.21312886,817.51,816.81,1.64048887]
[1754800374787,0.21312886,817.51,816.23,2.73234571]
[1754800374788,0.21312886,817.51,816.8,1.64048887]
[1754800375085,0.21312886,817.51,816.86,1.64048887]
[1754800375288,0.21312886,817.51,816.88,1.64048887]
[1754800375588,0.21312886,817.51,816.83,1.64048887]
[1754800375790,0.21312886,817.51,816.82,1.64048887]
[1754800376289,0.21312886,817.51,816.84,1.64048887]
[1754800377291,0.21312886,817.51,816.87,1.64048887]
[1754800378389,0.21312886,817.51,816.89,1.64048887]
[1754800378594,0.21312886,817.51,816.37,1.64048887]
[1754800379293,0.21312886,817.51,816.39,1.64048887]
[1754800379800,0.77075403,817.5,816.13,1.64048887]
[1754800379997,0.77075403,817.49,816.13,1.64048887]
[1754800380197,0.77075403,817.48,816.14,1.64048887]
[1754800380402,0.77075403,817.47,816.14,1.64048887]
[1754800380699,0.5,817.38,816.13,1.64048887]
[1754800380902,0.77075403,817.37,816.13,1.64048887]
[1754800381297,0.77075403,817.37,816.14,1.64048887]
[1754800381596,0.77075403,817.37,816.12,1.64048887]
[1754800381801,0.77075403,817.37,816.14,1.64048887]
[1754800382099,0.77075403,817.37,816.03,1.64048887]
[1754800382302,0.77075403,817.36,816.02,1.64048887]
[1754800382498,0.5,817.42,815.76,1.444]
[1754800382499,0.77075403,817.35,816.09,1.64048887]
[1754800382699,0.77075403,817.34,816.07,1.64048887]
[1754800382898,0.77075403,817.34,815.76,1.444]
[1754800382899,0.77075403,817.33,816.05,1.64048887]
[1754800383099,1.27075403,817.32,816.05,1.64048887]
[1754800383303,0.77075403,817.31,816.03,1.64048887]
[1754800383499,0.77075403,817.3,816.04,1.64048887]
[1754800383699,0.77075403,817.29,816.04,1.64048887]
[1754800383899,0.77075403,817.28,816.04,1.64048887]
[1754800384103,0.77075403,817.27,816.04,1.64048887]
[1754800384401,0.77075403,817.26,816.02,1.64048887]
[1754800384605,0.77075403,817.25,816.01,1.64048887]
[1754800384803,0.77075403,817.24,816.01,1.64048887]
[1754800385001,0.77075403,817.23,816.01,1.64048887]
[1754800385202,0.5,817.32,815.99,1.64048887]
[1754800385401,0.77013096,817.31,815.99,1.64048887]
[1754800385603,0.77013096,817.3,815.99,1.64048887]
[1754800385803,0.77013096,817.29,815.99,1.64048887]
[1754800386006,0.77013096,817.28,815.99,1.64048887]
[1754800386204,0.77013096,817.27,815.98,1.64048887]
[1754800386406,0.77013096,817.26,815.98,1.64048887]
[1754800386702,0.77013096,817.25,815.98,1.64048887]
[1754800386906,0.5,817.36,816.2,1.64048887]
[1754800387206,0.76986376,817.35,816.32,1.64048887]
[1754800387403,0.76986376,817.34,816.33,1.64048887]
[1754800387602,0.76986376,817.33,816.38,1.64048887]
[1754800387803,0.76962519,817.32,816.37,1.64048887]
[1754800388007,0.5,817.36,816.37,1.64048887]
[1754800388303,0.76962519,817.35,816.34,1.64048887]
[1754800388605,0.76962519,817.34,816.34,1.64048887]
[1754800388804,0.76962519,817.33,816.34,1.64048887]
[1754800389008,0.76962519,817.32,816.35,1.64048887]
[1754800389208,0.5,817.36,816.35,1.64048887]
[1754800389408,0.76933124,817.35,816.36,1.64048887]
[1754800389607,0.76933124,817.34,816.35,1.64048887]
[1754800389805,0.76933124,817.33,816.35,1.64048887]
[1754800390110,0.5,817.36,816.35,1.64048887]
[1754800390405,0.5,817.36,815.47,3.84070087]
[1754800390406,0.76918199,817.35,816.34,1.64048887]
[1754800390706,0.76918199,817.34,816.34,1.64048887]
[1754800391009,0.76918199,817.33,816.34,1.64048887]
[1754800391209,0.5,817.36,816.33,1.64048887]
[1754800391403,0.76904087,817.35,816.32,1.64048887]
[1754800391607,0.76904087,817.34,816.32,1.64048887]
[1754800391808,0.5,817.36,815.74,2.73234571]
[1754800391809,0.76904087,817.33,816.22,1.64048887]
[1754800392105,0.76904087,817.32,816.22,1.64048887]
[1754800392309,0.76904087,817.31,816.21,1.64048887]
[1754800392610,0.76904087,817.3,816.2,1.64048887]
[1754800392910,0.76904087,817.29,816.19,1.64048887]
[1754800393106,0.5,817.36,815.21,1.409]
[1754800393107,0.76904087,817.28,816.21,1.64048887]
[1754800393309,0.76904087,817.27,816.21,1.64048887]
[1754800393506,0.76904087,817.26,816.21,1.64048887]
[1754800393705,0.76904087,817.25,816.21,1.64048887]
[1754800393905,0.5,817.37,816.21,1.64048887]
[1754800394109,0.76876943,817.36,816.21,1.64048887]
[1754800394409,0.76876943,817.35,816.24,1.64048887]
[1754800394611,0.76876943,817.34,816.24,1.64048887]
[1754800394805,0.76876943,817.33,816.24,1.64048887]
[1754800395010,0.76876943,817.32,816.24,1.64048887]
[1754800395209,0.76876943,817.31,816.23,1.64048887]
[1754800395407,0.76876943,817.3,816.23,1.64048887]
[1754800395605,0.5,817.37,816.25,1.64048887]
[1754800395806,0.76863295,817.36,816.25,1.64048887]
[1754800396010,0.76863295,817.35,816.25,1.64048887]
[1754800396212,0.76863295,817.34,816.25,1.64048887]
[1754800396508,0.76863295,817.33,816.25,1.64048887]
[1754800396708,0.76863295,817.32,816.25,1.64048887]
[1754800396909,0.76863295,817.31,816.25,1.64048887]
[1754800397109,0.76863295,817.3,816.25,1.64048887]
[1754800397312,0.5,817.38,816.25,1.64048887]
[1754800397513,0.76855971,817.37,816.25,1.64048887]
[1754800397813,0.76855971,817.36,816.25,1.64048887]
[1754800398012,0.5,817.38,816.25,1.64048887]
[1754800398013,0.76855971,817.35,816.25,1.64048887]
[1754800398309,0.76855971,817.34,816.26,1.64048887]
[1754800398513,0.76855971,817.33,816.26,1.64048887]
[1754800398812,0.76855971,817.32,816.26,1.64048887]
[1754800399009,0.76855971,817.31,816.26,1.64048887]
[1754800399307,0.76855971,817.3,816.26,1.64048887]
[1754800399509,0.5,817.38,816.26,1.64048887]
[1754800399710,0.76848796,817.37,816.26,1.64048887]
[1754800399909,0.76848796,817.36,816.26,1.64048887]
[1754800400108,0.76848796,817.35,816.26,1.64048887]
[1754800400413,0.76848796,817.34,816.2,1.64048887]
[1754800400608,0.76848796,817.33,816.2,1.64048887]
[1754800400812,0.76848796,817.32,816.2,1.64048887]
[1754800401009,0.76848796,817.31,816.2,1.64048887]
[1754800401212,0.76848796,817.3,816.2,1.64048887]
[1754800401409,0.5,817.4,816.19,1.64048887]
[1754800401614,0.76841107,817.39,816.19,1.64048887]
[1754800401914,0.5,817.4,816.32,1.64048887]
[1754800402110,0.5,817.4,816.29,1.64048887]
[1754800402515,0.5,817.4,816.3,1.64048887]
[1754800403310,0.5,817.4,816.31,1.64048887]
[1754800404110,0.5,817.4,816.32,1.64048887]
[1754800404315,0.76853408,817.39,816.04,1.64048887]
[1754800404514,0.76853408,817.38,815.98,1.64048887]
[1754800404714,0.76853408,817.37,815.98,1.64048887]
[1754800404915,0.76853408,817.36,815.97,1.64048887]
[1754800405216,0.76853408,817.35,815.97,1.64048887]
[1754800405413,0.76853408,817.34,815.97,1.64048887]
[1754800405715,0.5,817.4,815.97,1.64048887]
[1754800405916,0.76853057,817.39,815.97,1.64048887]
[1754800406215,0.76853057,817.38,815.97,1.64048887]
[1754800406416,0.76853057,817.37,815.97,1.64048887]
[1754800406616,0.76853057,817.36,815.97,1.64048887]
[1754800406811,0.76853057,817.35,815.97,1.64048887]
[1754800407115,0.76853057,817.34,815.97,1.64048887]
[1754800407416,0.5,817.4,815.97,1.64048887]
[1754800407616,0.76854763,817.39,815.97,1.64048887]
[1754800407814,0.76854763,817.38,815.97,1.64048887]
[1754800408012,0.76854763,817.37,815.97,1.64048887]
[1754800408213,0.76854763,817.36,815.97,1.64048887]
[1754800408515,0.76854763,817.35,815.97,1.64048887]
[1754800408713,0.76854763,817.34,815.98,1.64048887]
[1754800409013,0.5,817.4,815.99,1.64048887]
[1754800409213,0.76857163,817.39,815.99,1.64048887]
[1754800409417,0.76857163,817.38,815.99,1.64048887]
[1754800409617,0.76857163,817.37,815.99,1.64048887]
[1754800409817,0.76857163,817.36,815.99,1.64048887]
[1754800410017,0.76857163,817.35,815.99,1.64048887]
[1754800410218,0.76857163,817.34,815.99,1.64048887]
[1754800410416,0.5,817.4,815.99,1.64048887]
[1754800410620,0.76857986,817.39,815.99,1.64048887]
[1754800410817,0.76857986,817.38,815.99,1.64048887]
[1754800411015,0.76857986,817.37,815.99,1.64048887]
[1754800411320,0.76857986,817.36,815.99,1.64048887]
[1754800411514,0.76857986,817.35,815.99,1.64048887]
[1754800411716,0.76857986,817.34,815.98,1.64048887]
[1754800411919,0.5,817.4,815.98,1.64048887]
[1754800412117,0.76855789,817.39,815.98,1.64048887]
[1754800412317,0.76855789,817.38,815.98,1.64048887]
[1754800412617,0.76855789,817.37,815.98,1.64048887]
[1754800412819,0.76855789,817.36,815.98,1.64048887]
[1754800413121,0.76855789,817.35,815.98,1.64048887]
[1754800413322,0.76855789,817.34,815.98,1.64048887]
[1754800413524,0.5,817.4,815.98,1.64048887]
[1754800413823,0.76853385,817.39,815.98,1.64048887]
[1754800414025,0.76853385,817.38,815.98,1.64048887]
[1754800414221,0.5,817.4,815.21,1.409]
[1754800414222,0.76853385,817.37,816.2,1.64048887]
[1754800414421,0.76853385,817.36,816.2,1.64048887]
[1754800414724,0.5,817.4,816.2,1.64048887]
[1754800414725,0.76853385,817.35,816.2,1.64048887]
[1754800414919,0.5,817.4,816.2,1.64048887]
[1754800415120,0.76853279,817.39,816.2,1.64048887]
[1754800415323,0.76853279,817.38,816.2,1.64048887]
[1754800415524,0.76853279,817.37,816.23,1.64048887]
[1754800415724,0.76853279,817.36,816.23,1.64048887]
[1754800415923,0.76853279,817.35,816.23,1.64048887]
[1754800416121,0.5,817.4,816.23,1.64048887]
[1754800416321,0.76854897,817.39,816.23,1.64048887]
[1754800416521,0.76854897,817.38,816.23,1.64048887]
[1754800416720,0.76854897,817.37,816.23,1.64048887]
[1754800416924,0.76854897,817.36,816.23,1.64048887]
[1754800417226,0.76854897,817.35,816.32,1.64048887]
[1754800417525,0.5,817.4,816.32,1.64048887]
[1754800417721,0.5,817.3,816.23,1.64048887]
[1754800417922,0.5,817.3,816.24,1.64048887]
[1754800418125,0.292,817.28,816.24,1.64048887]
[1754800418928,0.292,817.28,816.27,1.64048887]
[1754800419326,0.292,817.28,816.26,1.64048887]
[1754800420327,0.5,817.21,816.26,1.64048887]
[1754800420527,0.5,817.21,815.37,3.84070087]
[1754800420528,0.5,817.21,816.24,1.64048887]
[1754800421029,0.5,817.22,816.21,1.64048887]
[1754800421727,0.5,817.22,816.19,1.64048887]
[1754800423329,0.5,817.22,816.2,1.64048887]
[1754800425332,0.5,817.22,816.21,1.64048887]
[1754800426429,0.5,817.22,816.22,1.64048887]
[1754800427528,0.5,817.22,815.59,2.73234571]
[1754800427529,0.5,817.22,816.26,1.64048887]
[1754800428434,0.5,817.22,815.66,2.73234571]
[1754800428435,0.5,817.22,816.28,1.64048887]
[1754800429232,0.5,817.22,816.3,1.64048887]
[1754800429433,0.5,817.22,816.31,1.64048887]
[1754800430337,0.5,817.22,816.33,1.64048887]
[1754800430834,0.5,817.22,816.37,1.64048887]
[1754800431437,0.5,817.22,816.39,1.64048887]
[1754800431837,0.76984315,817.21,816.24,1.64048887]
[1754800432041,0.76984315,817.2,816.24,1.64048887]
[1754800432241,0.76984315,817.19,816.24,1.64048887]
[1754800432438,0.76984315,817.18,816.26,1.64048887]
[1754800432742,0.76984315,817.17,816.26,1.64048887]
[1754800433041,0.76984315,817.16,816.26,1.64048887]
[1754800433338,0.76984315,817.15,816.29,1.64048887]
[1754800433542,0.76984315,817.14,816.29,1.64048887]
[1754800433837,0.76984315,817.13,816.29,1.64048887]
[1754800434042,0.76984315,817.12,816.29,1.64048887]
[1754800434338,0.76984315,817.11,816.29,1.64048887]
[1754800434636,0.76984315,817.1,816.31,1.64048887]
[1754800434841,0.5,817.22,816.31,1.64048887]
[1754800435039,0.77067102,817.21,816.31,1.64048887]
[1754800435239,0.77067102,817.2,816.31,1.64048887]
[1754800435442,0.77067102,817.19,816.33,1.64048887]
[1754800435639,0.77067102,817.18,816.33,0.58792245]
[1754800435840,0.77067102,817.17,816.33,0.58792245]
[1754800436037,0.77067102,817.16,816.33,0.58792245]
[1754800436240,0.77067102,817.15,816.33,0.58792245]
[1754800436544,0.77067102,817.14,815.8,2.73234571]
[1754800436745,0.77067102,817.13,815.79,2.73234571]
[1754800436939,0.77067102,817.12,815.79,2.73234571]
[1754800437144,0.77067102,817.11,815.79,2.73234571]
[1754800437341,0.77067102,817.1,815.79,2.73234571]
[1754800437545,0.77067102,817.09,815.79,2.73234571]
[1754800437743,0.77067102,817.08,815.82,2.73234571]
[1754800437945,0.77067102,817.07,815.82,2.73234571]
[1754800438144,0.77067102,817.06,815.82,2.73234571]
[1754800438349,0.77067102,817.05,815.82,2.73234571]
[1754800438551,0.77067102,817.04,815.82,2.73234571]
[1754800438846,0.77067102,817.03,815.84,2.73234571]
[1754800439052,0.77067102,817.02,815.84,2.73234571]
[1754800439253,0.77067102,817.01,815.84,2.73234571]
[1754800439447,0.77067102,817.0,815.84,2.73234571]
[1754800439752,0.77067102,816.99,815.86,2.73234571]
[1754800439947,0.77067102,816.98,815.86,2.73234571]
[1754800440148,0.77067102,816.97,815.86,2.73234571]
[1754800440452,0.82613948,817.21,815.86,2.73234571]
[1754800440652,0.7840546,817.2,815.86,2.73234571]
[1754800440854,0.7840546,817.19,815.91,2.73234571]
[1754800441156,0.7840546,817.18,815.91,2.73234571]
[1754800441353,0.7840546,817.17,815.64,3.84070087]
[1754800441549,0.7840546,817.16,815.64,3.84070087]
[1754800441751,0.5,817.23,815.64,3.84070087]
[1754800441955,0.76270394,817.22,815.65,0.97495591]
[1754800442250,0.76270394,817.21,815.66,0.97495591]
[1754800442454,0.5,817.23,815.67,0.97495591]
[1754800442751,0.76269825,817.22,815.68,0.97495591]
[1754800442950,0.76269825,817.21,815.69,0.97495591]
[1754800443159,0.5,817.23,815.7,0.97495591]
[1754800443355,0.76270908,817.22,815.71,0.97495591]
[1754800443559,0.76270908,817.21,815.72,0.97495591]
[1754800443758,0.5,817.23,815.73,0.97495591]
[1754800443960,0.76270908,817.22,815.74,0.97495591]
[1754800444259,0.76270908,817.21,815.75,0.97495591]
[1754800444460,0.5,817.23,815.76,0.97495591]
[1754800444661,0.76272007,817.22,815.77,0.97495591]
[1754800444858,0.76272007,817.21,815.78,0.97495591]
[1754800445058,0.5,817.23,815.79,0.97495591]
[1754800445256,0.76272597,817.22,815.8,0.97495591]
[1754800445461,0.76272597,817.21,815.14,2.73234571]
[1754800445659,0.5,817.23,815.15,0.97499654]
[1754800445857,0.76273127,817.22,815.16,0.97499654]
[1754800446056,0.76273127,817.21,815.17,0.97499654]
[1754800446360,0.76273127,817.2,815.18,0.97499654]
[1754800446562,0.5,817.23,815.19,0.97499654]
[1754800446863,0.76274273,817.22,815.2,0.97499654]
[1754800447159,0.76274273,817.21,815.21,0.97499654]
[1754800447357,0.5,817.32,815.22,0.97499654]
[1754800447561,0.76271895,817.31,815.23,0.97499654]
[1754800447759,0.76271895,817.3,815.24,0.97499654]
[1754800447958,0.76271895,817.29,815.25,0.97499654]
[1754800448162,0.76271895,817.28,815.26,0.97499654]
[1754800448363,0.76271895,817.27,815.27,0.97499654]
[1754800448560,0.76271895,817.26,815.28,0.97499654]
[1754800448760,0.76271895,817.25,815.29,0.97499654]
[1754800448965,0.76271895,817.24,815.3,0.97499654]
[1754800449264,0.5,817.32,815.31,0.97499654]
[1754800449463,0.76271406,817.31,815.32,0.97499654]
[1754800449665,0.76271406,817.3,815.33,0.97499654]
[1754800449864,0.76271406,817.29,815.34,0.97499654]
[1754800450064,0.76271406,817.28,815.35,0.97499654]
[1754800450261,0.76271406,817.27,815.36,0.97499654]
[1754800450565,0.76271406,817.26,815.37,0.97499654]
[1754800450765,0.76271406,817.25,815.38,0.97499654]
[1754800450965,0.5,817.32,815.39,0.97499654]
[1754800451162,0.76271466,817.31,815.4,0.97499654]
[1754800451365,0.76271466,817.3,815.72,2.73234571]
[1754800451565,0.76271466,817.29,815.73,0.97499654]
[1754800451762,0.76271466,817.28,815.75,2.73234571]
[1754800452067,0.5,817.32,815.76,0.97474625]
[1754800452264,0.76270431,817.31,815.77,0.97474625]
[1754800452465,0.76270431,817.3,815.75,2.73234571]
[1754800452665,0.76270431,817.29,815.76,0.97474784]
[1754800452865,0.76270431,817.28,815.82,2.73234571]
[1754800453066,0.5,817.32,815.82,2.73234571]
[1754800453363,0.7627109,817.31,815.82,2.73234571]
[1754800453565,0.7627109,817.3,815.82,2.73234571]
[1754800453765,0.7627109,817.29,815.82,2.73234571]
[1754800453961,0.5,817.32,815.82,2.73234571]
[1754800453962,0.7627109,817.28,815.82,2.73234571]
[1754800454266,0.5,817.32,815.82,2.73234571]
[1754800454464,0.76275053,817.31,815.85,2.73234571]
[1754800454664,0.76275053,817.3,815.85,2.73234571]
[1754800454863,0.76275053,817.29,815.85,2.73234571]
[1754800455061,0.5,817.32,815.8,2.73234571]
[1754800455365,0.76278249,817.31,815.8,2.73234571]
[1754800455562,0.76278249,817.3,816.53,1.64212933]
[1754800455763,0.76278249,817.29,816.53,1.64212933]
[1754800455966,0.5,817.32,816.53,1.64212933]
[1754800456263,0.7627916,817.31,816.54,1.64212933]
[1754800456462,0.7627916,817.3,816.54,1.64212933]
[1754800456667,0.7627916,817.29,816.54,1.64212933]
[1754800456868,0.5,817.32,815.76,2.73234571]
[1754800456869,0.5,817.32,816.53,1.64212933]
[1754800457068,0.76283513,817.31,816.53,1.64212933]
[1754800457268,0.5,817.32,816.53,1.64212933]
[1754800457269,0.76283513,817.3,816.53,1.64212933]
[1754800457563,0.76283513,817.29,816.53,1.64212933]
[1754800457764,0.5,817.32,816.49,1.64212933]
[1754800457967,0.76287533,817.31,816.49,1.64212933]
[1754800458168,0.76287533,817.3,816.5,1.64212933]
[1754800458369,0.76287533,817.29,816.5,1.64212933]
[1754800458666,0.5,817.32,816.53,1.64212933]
[1754800458869,0.7629221,817.31,816.38,1.64212933]
[1754800459070,0.5,817.32,816.4,1.64212933]
[1754800459367,0.76293134,817.31,816.41,1.64212933]
[1754800459669,0.5,817.32,816.41,1.64212933]
[1754800459863,0.7629313,817.31,816.41,1.64212933]
[1754800460068,0.5,817.32,816.41,1.64212933]
[1754800460264,0.76298082,817.31,816.41,1.64212933]
[1754800460469,0.5,817.32,816.41,1.64212933]
[1754800460670,0.7629658,817.31,816.41,1.64212933]
[1754800460871,0.5,817.32,816.41,1.64212933]
[1754800461070,0.7629658,817.31,816.41,1.64212933]
[1754800461271,0.5,817.32,816.41,1.64212933]
[1754800461472,0.76299744,817.31,816.41,1.64212933]
[1754800461671,0.5,817.32,816.41,1.64212933]
[1754800461872,0.76299744,817.31,816.33,1.64212933]
[1754800462172,0.76299744,817.3,816.34,1.64212933]
[1754800462373,0.76299744,817.29,816.34,1.64212933]
[1754800462574,0.76299744,817.28,816.19,1.64212933]
[1754800462774,0.76299744,817.27,816.19,1.64212933]